bitfinex/quotes_SOLUSD_20241229
["timestamp","ask_amount","ask_price","bid_price","bid_amount"]
[1735471617298,2.24180368,196.82,196.73,23.776884]
[1735471619209,2.24180368,196.82,196.7,7.8712]
[1735471619427,2.24180368,196.82,196.7,1.5076]
[1735471619627,2.24180368,196.82,196.71,23.776884]
[1735471620196,2.24180368,196.82,196.73,23.776884]
[1735471622219,20.0,196.8,196.66,0.76234497]
[1735471622401,0.71870368,196.79,196.65,7.1260667]
[1735471622721,0.71870368,196.79,196.66,23.776884]
[1735471622900,0.71870368,196.81,196.69,20.0]
[1735471623821,0.71870368,196.81,196.71,20.0]
[1735471624009,0.71870368,196.81,196.72,23.776884]
[1735471624313,0.71870368,196.81,196.68,0.76233277]
[1735471624517,20.0,196.8,196.69,23.776884]
[1735471624721,0.71870368,196.79,196.69,23.776884]
[1735471625602,0.71870368,196.79,196.66,0.76238384]
[1735471625815,0.71870368,196.79,196.65,6.3636]
[1735471626021,0.71870368,196.79,196.69,23.776884]
[1735471626610,0.71870368,196.79,196.68,23.776884]
[1735471626611,7.9725,196.78,196.68,23.776884]
[1735471626843,0.71870368,196.77,196.68,23.776884]
[1735471627201,0.71870368,196.77,196.64,1.5076]
[1735471627503,0.71870368,196.77,196.65,23.776884]
[1735471634521,20.0,196.75,196.63,20.0]
[1735471634717,0.71870368,196.74,196.6,7.20845299]
[1735471635213,1.5551,196.73,196.61,23.776884]
[1735471635412,0.71870368,196.72,196.61,23.776884]
[1735471635816,0.71870368,196.72,196.6,23.776884]
[1735471640717,6.5579,196.71,196.6,23.776884]
[1735471640920,0.71870368,196.7,196.6,23.776884]
[1735471646337,0.71870368,196.7,196.56,0.76277184]
[1735471646935,0.71870368,196.7,196.59,23.776884]
[1735471647637,0.71870368,196.7,196.56,23.776884]
[1735471647839,0.71870368,196.7,196.57,0.76276605]
[1735471650347,6.5579,196.71,196.59,20.0]
[1735471650532,6.5579,196.71,196.61,23.776884]
[1735471650737,0.71870368,196.7,196.61,23.776884]
[1735471651452,6.5579,196.71,196.61,23.776884]
[1735471653855,0.71870368,196.7,196.61,23.776884]
[1735471654664,0.71870368,196.7,196.59,23.776884]
[1735471654829,0.71870368,196.7,196.6,23.776884]
[1735471656743,0.71870368,196.7,196.55,7.9995]
[1735471657043,0.71870368,196.7,196.58,20.0]
[1735471657346,0.71870368,196.7,196.59,20.0]
[1735471659347,20.0,196.68,196.56,23.776884]
[1735471659645,0.71870368,196.67,196.56,23.776884]
[1735471663567,0.71870368,196.7,196.56,24.53972735]
[1735471666259,0.71870368,196.7,196.59,20.0]
[1735471666449,0.71870368,196.7,196.6,23.776884]
[1735471671565,6.5579,196.71,196.6,23.776884]
[1735471673266,6.5579,196.71,196.62,23.776884]
[1735471673472,2.27380368,196.73,196.62,23.776884]
[1735471673658,1.5551,196.73,196.64,23.776884]
[1735471674672,1.5551,196.73,196.65,0.76252938]
[1735471674859,0.71870368,196.75,196.66,23.776884]
[1735471677063,7.33760368,196.76,196.66,23.776884]
[1735471682387,6.6189,196.76,196.66,23.776884]
[1735471682955,2.31090368,196.77,196.66,23.776884]
[1735471683454,1.5922,196.77,196.66,23.776884]
[1735471685582,2.31090368,196.77,196.66,23.776884]
[1735471686481,1.5922,196.77,196.66,23.776884]
[1735471688077,1.5922,196.77,196.68,23.776884]
[1735471688786,0.71870368,196.8,196.7,23.776884]
[1735471689986,7.38410368,196.81,196.7,23.776884]
[1735471692186,0.71870368,196.81,196.7,23.776884]
[1735471692484,1.5376,196.82,196.72,23.776884]
[1735471693767,2.25630368,196.82,196.72,23.776884]
[1735471703492,1.5376,196.82,196.72,23.776884]
[1735471705196,2.25630368,196.82,196.72,23.776884]
[1735471705396,1.5376,196.82,196.72,23.776884]
[1735471706598,2.25630368,196.82,196.72,23.776884]
[1735471708502,1.5376,196.82,196.74,23.776884]
[1735471711605,0.95272329,196.81,196.66,20.0]
[1735471711789,6.258,196.8,196.63,1.5723]
[1735471711989,0.95305153,196.79,196.64,23.776884]
[1735471712306,0.95305153,196.79,196.63,1.9974963]
[1735471712475,0.95305153,196.79,196.7,23.776884]
[1735471715989,20.0,196.77,196.63,1.9974963]
[1735471716194,0.95325208,196.76,196.61,0.4255974]
[1735471717209,0.95325208,196.76,196.63,23.776884]
[1735471717386,6.1679,196.75,196.63,23.776884]
[1735471717586,0.95328822,196.74,196.6,0.42566674]
[1735471719900,0.95328822,196.74,196.63,23.776884]
[1735471721115,1.5449,196.73,196.59,0.42566234]
[1735471721317,0.95336205,196.72,196.59,0.42566234]
[1735471721883,0.95336205,196.72,196.61,20.0]
[1735471722815,0.95336205,196.72,196.62,23.776884]
[1735471727040,1.5449,196.73,196.63,0.42576196]
[1735471728313,2.51013436,196.78,196.63,0.42576196]
[1735471730122,2.51013436,196.78,196.66,23.776884]
[1735471730294,2.51013436,196.78,196.66,24.20199843]
[1735471731725,2.51013436,196.78,196.7,23.776884]
[1735471731929,1.5568,196.78,196.7,23.776884]
[1735471733000,6.4287,196.8,196.7,23.776884]
[1735471737925,0.95288405,196.79,196.7,23.776884]
[1735471744829,0.95288405,196.79,196.68,20.0]
[1735471746636,1.6548,196.78,196.66,1.6539]
[1735471746834,0.95311999,196.77,196.65,6.2475]
[1735471747036,0.95311999,196.77,196.66,23.776884]
[1735471749315,0.95311999,196.77,196.65,24.20216096]
[1735471752232,1.6548,196.78,196.69,23.776884]
[1735471759233,6.4287,196.8,196.69,23.776884]
[1735471762236,0.95284017,196.79,196.69,23.776884]
[1735471763347,6.4287,196.8,196.69,23.776884]
[1735471763550,0.95288711,196.79,196.69,23.776884]
[1735471764050,6.4287,196.8,196.69,23.776884]
[1735471768249,0.95287787,196.79,196.69,23.776884]
[1735471769051,0.95289176,196.79,196.69,23.776884]
[1735471769251,6.4287,196.8,196.69,23.776884]
[1735471771150,0.95288414,196.79,196.69,23.776884]
[1735471771343,6.4287,196.8,196.69,23.776884]
[1735471771540,0.95288768,196.79,196.69,23.776884]
[1735471783164,6.4287,196.8,196.69,23.776884]
[1735471785770,6.4287,196.8,196.73,23.776884]
[1735471789667,22.57439182,196.83,196.73,23.776884]
[1735471789879,2.57439182,196.83,196.73,23.776884]
[1735471802893,0.95277917,196.84,196.73,25.369884]
[1735471803984,80.8,196.86,196.73,25.369884]
[1735471803985,0.95270506,196.85,196.73,25.369884]
[1735471814106,0.95270506,196.85,196.73,25.369884]
[1735471815505,0.95270506,196.85,196.73,23.776884]
[1735471816807,20.95270506,196.85,196.73,23.776884]
[1735471817684,0.95270506,196.85,196.73,23.776884]
[1735471818407,0.95270506,196.85,196.77,23.776884]
[1735471818602,0.95269097,196.84,196.77,23.776884]
[1735471818785,0.95265679,196.86,196.77,23.776884]
[1735471821282,20.95265679,196.86,196.71,6.5858]
[1735471821686,20.95265679,196.86,196.75,23.776884]
[1735471825418,0.95265679,196.86,196.75,23.776884]
[1735471847406,0.95265679,196.86,196.79,23.776884]
[1735471848005,1.6497,196.87,196.79,23.776884]
[1735471849716,0.95256052,196.88,196.79,23.776884]
[1735471853239,0.95256052,196.88,196.83,23.776884]
[1735471853415,6.5399,196.89,196.83,23.776884]
[1735471853605,15.53977983,196.96,196.87,23.776884]
[1735471853811,7.93522129,196.96,196.88,0.42330997]
[1735471854010,7.93522129,197.0,196.91,23.776884]
[1735471854237,7.93522129,197.0,196.91,24.19969283]
[1735471855211,9.11590026,197.02,196.91,24.19969283]
[1735471855411,8.164,197.02,196.91,24.19969283]
[1735471860311,0.95182118,197.01,196.91,24.19969283]
[1735471860737,0.95182717,197.01,196.91,24.19969283]
[1735471860936,0.95182717,197.01,196.91,23.776884]
[1735471861116,0.95182717,197.01,196.87,1.5272]
[1735471861318,0.95182717,197.01,196.88,20.0]
[1735471861617,0.95182717,197.01,196.89,24.19978727]
[1735471861808,80.8,197.06,196.96,20.0]
[1735471861809,0.95185836,197.05,196.96,20.0]
[1735471862013,2.47015904,197.06,196.97,24.19949533]
[1735471863023,1.5184,197.06,196.97,24.19949533]
[1735471863227,8.1264,197.12,197.01,23.776884]
[1735471863415,0.95144211,197.11,197.01,23.776884]
[1735471867536,8.07784211,197.12,197.01,23.776884]
[1735471867857,0.52946465,197.11,197.01,23.776884]
[1735471868716,0.52946465,197.11,196.9,1.6345]
[1735471868717,6.1653,197.06,196.9,1.6345]
[1735471868945,0.52946465,197.05,196.9,1.6345]
[1735471869134,0.52946465,197.05,196.9,22.39584198]
[1735471869335,6.1653,197.06,196.91,23.776884]
[1735471869520,6.1653,197.06,196.96,20.0]
[1735471870264,6.1653,197.06,196.97,23.776884]
[1735471871063,0.52946465,197.05,196.97,23.776884]
[1735471872969,0.52946465,197.05,196.9,1.6345]
[1735471873267,0.52946465,197.05,196.95,23.776884]
[1735471874071,1.5659,197.08,196.99,23.776884]
[1735471874256,0.52946465,197.07,196.99,23.776884]
[1735471876165,20.52946465,197.07,196.9,1.6345]
[1735471876672,20.52946465,197.07,196.91,23.776884]
[1735471877773,20.52946465,197.07,196.95,23.776884]
[1735471897001,0.52946465,197.07,196.99,23.776884]
[1735471897171,2.09536465,197.08,196.99,23.776884]
[1735471898105,1.5659,197.08,196.99,23.776884]
[1735471898686,0.52946465,197.07,196.99,23.776884]
[1735471907374,0.52946465,197.07,196.92,20.0]
[1735471907797,0.52946465,197.07,196.97,23.776884]
[1735471909006,0.52946465,197.07,196.9,1.5292]
[1735471909186,0.52946465,197.07,196.92,20.0]
[1735471909605,0.52946465,197.07,196.93,23.776884]
[1735471916919,20.52946465,197.07,196.93,23.776884]
[1735471919020,20.0,197.06,196.93,23.776884]
[1735471919315,0.52946465,197.05,196.93,23.776884]
[1735471920037,0.52946465,197.05,196.97,23.776884]
[1735471920201,2.09536465,197.08,196.97,23.776884]
[1735471921235,0.52946465,197.07,196.97,23.776884]
[1735471922535,1.5659,197.08,197.0,20.0]
[1735471922698,1.5659,197.08,197.01,23.776884]
[1735471923401,0.52946465,197.1,197.01,23.776884]
[1735471932134,0.52946465,197.11,197.01,23.776884]
[1735471932313,2.13546465,197.12,197.01,23.776884]
[1735471933309,1.606,197.12,197.01,23.776884]
[1735471942258,0.52946465,197.11,197.01,23.776884]
[1735471945990,1.606,197.12,197.01,23.776884]
[1735471946180,0.52946465,197.11,197.01,23.776884]
[1735471949352,0.52946465,197.11,196.99,20.0]
[1735471951061,0.52946465,197.11,197.0,23.776884]
[1735471951438,6.471,197.1,197.0,23.776884]
[1735471951641,0.52946465,197.09,197.0,23.776884]
[1735471951854,0.52946465,197.09,196.97,23.776884]
[1735471952661,0.52946465,197.09,197.0,20.0]
[1735471962863,0.52946465,197.09,197.01,23.776884]
[1735471974284,6.471,197.1,197.01,23.776884]
[1735471974582,0.52946465,197.09,196.96,21.5521]
[1735471974788,0.52946465,197.09,196.97,20.0]
[1735471974960,0.52946465,197.09,196.98,23.776884]
[1735471984098,6.471,197.1,196.98,23.776884]
[1735471984262,0.52946465,197.09,196.98,23.776884]
[1735471984593,6.471,197.1,196.98,23.776884]
[1735471984762,0.52946465,197.09,196.98,23.776884]
[1735471986105,0.52946465,197.09,196.98,29.897384]
[1735471986310,22.13546465,197.12,196.98,29.897384]
[1735471987292,22.13546465,197.12,197.01,20.0]
[1735471987499,22.13546465,197.12,197.02,23.776884]
[1735471990403,2.13546465,197.12,197.02,23.776884]
[1735471990699,1.606,197.12,197.02,23.776884]
[1735471990901,0.52946465,197.11,197.02,23.776884]
[1735471991700,0.52946465,197.14,197.02,23.776884]
[1735471994171,0.52946465,197.14,197.06,23.776884]
[1735471997691,20.52946465,197.17,197.06,23.776884]
[1735471999011,7.6461,197.16,197.0,1.6261]
[1735471999176,0.52946465,197.15,197.01,23.776884]
[1735471999986,0.52946465,197.15,197.05,23.776884]
[1735472005497,20.0,197.13,197.0,1.6261]
[1735472005799,0.52946465,197.12,197.0,1.6261]
[1735472005979,0.52946465,197.12,197.01,23.776884]
[1735472020509,0.52946465,197.12,197.05,23.776884]
[1735472020807,0.52946465,197.15,197.05,23.776884]
[1735472026904,5.67556465,197.16,197.05,23.776884]
[1735472029805,7.30216465,197.16,197.05,23.776884]
[1735472034203,7.30216465,197.16,197.0,1.6261]
[1735472034408,7.30216465,197.16,197.04,23.776884]
[1735472044706,4.80216465,197.16,197.04,23.776884]
[1735472047311,1.6266,197.16,197.04,23.776884]
[1735472048424,6.4197,197.2,197.07,43.776884]
[1735472050457,7.93522129,197.22,197.11,20.0]
[1735472050738,7.93522129,197.22,197.12,40.96128508]
[1735472050943,7.93522129,197.22,197.15,20.0]
[1735472051154,7.93522129,197.22,197.16,24.53746286]
[1735472051626,20.0,197.17,197.1,7.98571171]
[1735472051942,8.0463,197.2,197.1,7.98571171]
[1735472052511,20.0,197.17,197.06,23.776884]
[1735472052931,20.0,197.17,197.04,0.76091612]
[1735472053127,20.0,197.17,197.05,20.0]
[1735472053328,20.0,197.17,197.06,20.0]
[1735472053918,20.0,197.17,197.08,23.776884]
[1735472054738,20.0,197.17,197.09,3.52111499]
[1735472055318,20.0,197.17,197.07,23.776884]
[1735472055712,20.0,197.17,197.08,3.52079893]
[1735472056508,20.0,197.17,197.07,23.776884]
[1735472056707,20.0,197.17,197.05,20.0]
[1735472057842,20.0,197.17,197.06,3.52103448]
[1735472058023,20.0,197.17,197.07,23.776884]
[1735472058355,20.0,197.17,197.06,23.776884]
[1735472058575,20.0,197.17,197.06,43.776884]
[1735472059756,20.0,197.17,197.07,3.52120772]
[1735472060558,20.0,197.17,197.06,43.776884]
[1735472060559,1.5199,197.21,197.06,20.0]
[1735472060850,1.5199,197.21,197.09,23.776884]
[1735472064436,20.0,197.23,197.1,8.0713]
[1735472064636,20.0,197.23,197.1,11.59143604]
[1735472065156,20.0,197.24,197.11,23.776884]
[1735472065453,20.0,197.24,197.11,27.29702004]
[1735472066055,20.0,197.24,197.11,23.776884]
[1735472073577,7.6285,197.23,197.1,0.76076821]
[1735472073771,7.6285,197.23,197.04,6.6275]
[1735472073772,20.0,197.2,197.05,1.6402]
[1735472074470,20.0,197.2,197.06,3.51839113]
[1735472074650,20.0,197.2,197.07,23.776884]
[1735472075063,20.0,197.2,197.06,23.776884]
[1735472077951,1.5188,197.19,197.06,23.776884]
[1735472097194,1.5188,197.19,197.08,23.776884]
[1735472097705,1.5188,197.19,197.06,23.776884]
[1735472098995,1.5188,197.19,197.08,23.776884]
[1735472099683,1.5188,197.19,197.06,23.776884]
[1735472100698,1.5188,197.19,197.08,23.776884]
[1735472101398,1.5188,197.19,197.06,23.776884]
[1735472103623,21.5188,197.19,197.06,23.776884]
[1735472104611,20.0,197.18,197.06,23.776884]
[1735472106606,20.0,197.14,197.05,1.6402]
[1735472111492,20.0,197.14,197.06,23.776884]
[1735472115014,6.5353,197.17,197.06,23.776884]
[1735472116306,6.5353,197.17,197.08,23.776884]
[1735472116823,21.5188,197.19,197.06,23.776884]
[1735472117716,21.5188,197.19,197.08,23.776884]
[1735472118225,21.5188,197.19,197.06,23.776884]
[1735472119615,21.5188,197.19,197.08,23.776884]
[1735472120317,21.5188,197.19,197.09,3.52527807]
[1735472120814,21.5188,197.19,197.06,23.776884]
[1735472121399,21.5188,197.19,197.07,3.52489606]
[1735472121604,21.5188,197.19,197.08,23.776884]
[1735472122099,21.5188,197.19,197.09,3.52489606]
[1735472122618,21.5188,197.19,197.06,23.776884]
[1735472123115,21.5188,197.19,197.08,23.776884]
[1735472123919,21.5188,197.19,197.1,23.776884]
[1735472124821,21.5188,197.19,197.06,23.776884]
[1735472125419,21.5188,197.19,197.08,23.776884]
[1735472126229,21.5188,197.19,197.1,23.776884]
[1735472126631,21.5188,197.19,197.06,23.776884]
[1735472165863,20.0,197.18,197.06,23.776884]
[1735472188874,21.5188,197.19,197.06,23.776884]
[1735472189776,20.0,197.18,197.06,23.776884]
[1735472194882,6.5023,197.17,197.03,0.76098392]
[1735472195206,6.5023,197.17,197.04,23.776884]
[1735472195361,20.0,197.14,197.04,23.776884]
[1735472195784,20.0,197.14,197.03,23.776884]
[1735472196892,20.0,197.14,197.03,0.76104723]
[1735472208887,20.0,197.14,197.04,23.776884]
[1735472216484,21.512,197.14,197.04,23.776884]
[1735472222209,21.512,197.14,197.0,8.1774]
[1735472222412,21.512,197.14,197.0,1.5499]
[1735472222906,21.512,197.14,197.01,23.776884]
[1735472226913,6.3631,197.13,197.01,23.776884]
[1735472227106,6.3631,197.13,196.98,23.776884]
[1735472228817,20.0,197.1,196.97,0.76118154]
[1735472229016,1.6345,197.09,196.96,6.5946]
[1735472229318,21.6345,197.09,196.97,23.776884]
[1735472229516,6.3631,197.08,196.97,23.776884]
[1735472230309,6.3631,197.08,196.96,23.776884]
[1735472230991,6.3631,197.08,196.95,20.7613445]
[1735472231619,6.3631,197.08,196.96,23.776884]
[1735472238030,6.3631,197.08,196.94,23.776884]
[1735472240209,6.3631,197.08,196.96,23.776884]
[1735472240408,6.3631,197.08,196.98,23.776884]
[1735472245325,1.6345,197.09,196.98,23.776884]
[1735472251255,1.6345,197.09,197.0,23.776884]
[1735472267946,6.0221,197.13,197.02,23.776884]
[1735472281963,6.0221,197.13,196.96,2.28569771]
[1735472282270,6.0221,197.13,196.99,20.0]
[1735472282770,6.0221,197.13,197.0,23.776884]
[1735472289282,6.0221,197.13,197.02,23.776884]
[1735472291576,1.5634,197.14,197.02,25.286584]
[1735472291888,1.5634,197.14,197.04,23.776884]
[1735472303965,1.5634,197.14,197.03,23.776884]
[1735472310206,20.0,197.15,197.05,23.776884]
[1735472310377,6.1431,197.18,197.05,23.776884]
[1735472311697,6.1431,197.18,197.09,23.776884]
[1735472312303,1.5623,197.19,197.09,23.776884]
[1735472326432,6.5332,197.23,197.09,23.776884]
[1735472331727,6.5332,197.23,197.12,20.0]
[1735472331910,6.5332,197.23,197.13,23.776884]
[1735472349857,6.86241943,197.29,197.15,23.776884]
[1735472351649,1.649,197.29,197.15,23.776884]
[1735472353559,1.649,197.29,197.19,23.776884]
[1735472354767,1.649,197.29,197.15,23.776884]
[1735472358274,20.0,197.27,197.15,23.776884]
[1735472365675,20.0,197.27,197.14,1.5471]
[1735472366988,26.6341,197.28,197.11,43.776884]
[1735472377095,34.56932129,197.28,197.11,43.776884]
[1735472377985,20.0,197.24,197.11,20.0]
[1735472378294,8.0112,197.23,197.11,20.0]
[1735472385189,20.0,197.2,197.09,23.776884]
[1735472391075,20.0,197.2,197.03,7.7542]
[1735472391415,1.5076,197.18,197.07,43.776884]
[1735472393710,6.1692,197.17,197.03,7.7542]
[1735472393877,6.1692,197.17,197.04,23.776884]
[1735472401215,20.0,197.14,197.04,23.776884]
[1735472401413,20.0,197.14,197.03,7.7542]
[1735472401583,20.0,197.14,197.03,1.6382]
[1735472401780,20.0,197.12,196.98,8.51525746]
[1735472402004,21.5076,197.12,196.99,23.776884]
[1735472403519,21.5076,197.12,196.98,8.51525746]
[1735472403821,21.5076,197.12,196.98,7.7542]
[1735472403979,21.5076,197.12,196.99,23.776884]
[1735472412535,20.0,197.08,196.99,23.776884]
[1735472412704,20.0,197.08,196.93,8.66134915]
[1735472412913,20.0,197.06,196.93,8.66134915]
[1735472413224,21.5944,197.06,196.93,7.9001]
[1735472418032,21.5944,197.06,196.93,1.5901]
[1735472418727,6.4743,197.05,196.91,20.0]
[1735472421666,6.4743,197.05,196.92,23.776884]
[1735472421874,21.5944,197.06,196.94,23.776884]
[1735472422029,21.5944,197.06,196.96,23.776884]
[1735472423260,21.5944,197.06,196.94,23.776884]
[1735472427361,21.5944,197.06,196.93,1.5696]
[1735472434354,6.3887,197.05,196.92,23.776884]
[1735472437064,20.0,197.01,196.88,7.7507]
[1735472437567,20.0,197.01,196.88,1.5503]
[1735472437568,1.6524,197.0,196.88,1.5503]
[1735472453672,6.2787,196.99,196.88,1.5503]
[1735472454979,6.2787,196.99,196.84,6.1278]
[1735472457388,6.2787,196.99,196.85,23.776884]
[1735472458453,1.6524,197.0,196.91,23.776884]
[1735472458676,87.0787,197.04,196.91,23.776884]
[1735472459692,20.0,197.01,196.91,23.776884]
[1735472460387,20.0,197.01,196.91,24.53844264]
[1735472461089,87.0787,197.04,196.91,24.53844264]
[1735472461277,80.8,197.08,196.95,23.776884]
[1735472461479,80.8,197.08,196.95,24.53822553]
[1735472462470,80.8,197.08,196.95,23.776884]
[1735472465690,20.0,197.05,196.9,8.0659]
[1735472465899,20.0,197.05,196.91,23.776884]
[1735472467495,20.0,197.05,196.93,23.776884]
[1735472468287,20.0,197.05,196.91,23.776884]
[1735472468673,6.6005,197.03,196.9,8.0659]
[1735472475912,6.6005,197.03,196.9,1.5963]
[1735472476207,20.0,197.0,196.9,1.5963]
[1735472477812,20.0,197.0,196.89,23.776884]
[1735472478609,20.0,197.0,196.85,7.7522]
[1735472479315,20.0,197.0,196.86,23.776884]
[1735472479682,1.5338,196.99,196.85,7.7522]
[1735472484000,6.4484,196.98,196.82,23.776884]
[1735472484299,20.0,196.95,196.8,1.66]
[1735472484805,20.0,196.95,196.81,23.776884]
[1735472485423,20.0,196.95,196.8,1.66]
[1735472485916,82.3338,196.99,196.75,7.98571171]
[1735472485917,20.0,196.91,196.75,9.54931171]
[1735472486124,20.0,196.91,196.79,20.0]
[1735472487505,20.0,196.91,196.76,23.776884]
[1735472492728,20.0,196.89,196.76,23.776884]
[1735472503035,20.0,196.89,196.78,23.776884]
[1735472507336,80.8,196.92,196.78,23.776884]
[1735472509653,8.1172,196.94,196.82,23.776884]
[1735472523751,1.5232,196.94,196.82,23.776884]
[1735472524139,1.5232,196.94,196.84,23.776884]
[1735472525072,8.1356,196.99,196.84,23.776884]
[1735472534595,8.1356,196.99,196.88,23.776884]
[1735472537698,8.1356,196.99,196.88,23.776884]
[1735472556654,1.6394,196.99,196.88,23.776884]
[1735472563752,20.0,197.01,196.88,23.776884]
[1735472579104,20.0,197.01,196.9,23.776884]
[1735472580501,87.4613,197.04,196.9,23.776884]
[1735472581202,6.6613,197.04,196.9,23.776884]
[1735472593396,6.6613,197.04,196.94,23.776884]
[1735472605407,6.6613,197.04,196.9,6.3659]
[1735472605794,6.6613,197.04,196.91,23.776884]
[1735472651851,20.0,197.01,196.88,2.29373968]
[1735472652162,21.6228,197.01,196.88,1.5322]
[1735472652349,21.6228,197.01,196.89,23.776884]
[1735472657163,21.6228,197.01,196.88,1.5322]
[1735472657559,21.6228,197.01,196.88,21.5322]
[1735472660466,20.0,197.0,196.88,21.5322]
[1735472662145,1.6228,197.01,196.85,7.15043464]
[1735472662146,20.0,196.96,196.86,23.776884]
[1735472664087,20.0,196.96,196.85,6.3887]
[1735472668086,1.6352,196.95,196.83,2.36831073]
[1735472668263,1.6352,196.95,196.83,1.6065]
[1735472668805,1.6352,196.95,196.84,23.776884]
[1735472685108,21.6352,196.95,196.84,23.776884]
[1735472689416,6.1612,196.99,196.87,20.0]
[1735472689612,6.1612,196.99,196.85,0.76178747]
[1735472689918,20.0,196.96,196.84,6.3253]
[1735472690077,20.0,196.96,196.85,23.776884]
[1735472694726,20.0,196.96,196.85,24.53862458]
[1735472698727,20.0,196.96,196.85,23.776884]
[1735472705546,6.1612,196.99,196.88,20.0]
[1735472706527,20.0,196.96,196.85,23.776884]
[1735472709649,20.0,196.96,196.83,1.6065]
[1735472709650,1.6647,196.95,196.83,1.6065]
[1735472711552,1.6647,196.95,196.81,23.776884]
[1735472715158,20.0,196.94,196.81,23.776884]
[1735472721137,20.0,196.94,196.83,23.776884]
[1735472722559,20.0,196.94,196.82,23.776884]
[1735472727280,20.0,196.94,196.8,14.26901171]
[1735472727281,80.8,196.98,196.86,23.776884]
[1735472729489,80.71131584,196.98,196.86,23.776884]
[1735472730482,80.71131584,196.98,196.85,20.0]
[1735472731480,80.71131584,196.98,196.84,20.0]
[1735472731697,80.71131584,196.98,196.84,43.776884]
[1735472738497,20.0,196.95,196.84,43.776884]
[1735472739987,20.0,196.95,196.83,21.5072]
[1735472741001,20.0,196.95,196.81,0.76185663]
[1735472741002,8.0373,196.94,196.81,0.76185663]
[1735472741383,8.0373,196.94,196.82,23.776884]
[1735472742999,8.0373,196.94,196.83,0.76183253]
[1735472743677,8.0373,196.94,196.85,20.0]
[1735472743877,1.5902,196.94,196.85,20.0]
[1735472747400,8.0373,196.99,196.86,23.776884]
[1735472747711,8.0373,196.99,196.89,20.0]
[1735472747999,80.71131584,197.0,196.89,20.0]
[1735472748199,7.93522129,197.01,196.89,20.0]
[1735472749902,7.93522129,197.01,196.9,24.53843253]
[1735472762031,1.542,197.03,196.9,24.53843253]
[1735472763435,1.542,197.03,196.9,0.76154853]
[1735472770731,20.0,197.0,196.86,6.3872]
[1735472770935,20.0,197.0,196.87,23.776884]
[1735472771124,20.0,197.0,196.86,6.3872]
[1735472773068,20.0,197.0,196.87,23.776884]
[1735472774469,8.1637,196.99,196.84,2.26187834]
[1735472774663,8.1637,196.99,196.85,23.776884]
[1735472775255,8.1637,196.99,196.84,2.26187834]
[1735472775471,20.0,196.96,196.84,2.26187834]
[1735472775671,20.0,196.96,196.84,22.26187834]
[1735472775879,20.0,196.96,196.84,21.5003]
[1735472783662,88.87501584,196.99,196.85,24.53865654]
[1735472786686,8.1637,196.99,196.88,20.0]
[1735472797291,8.1637,196.99,196.85,24.53865654]
[1735472800291,8.1637,196.99,196.88,20.0]
[1735472811299,8.1637,196.99,196.88,20.0]
[1735472813609,1.6621,196.99,196.89,20.0]
[1735472813904,6.2754,197.03,196.89,20.76165873]
[1735472816819,6.2754,197.03,196.9,23.776884]
[1735472816976,6.2754,197.03,196.91,0.76144814]
[1735472817375,6.2754,197.03,196.93,20.0]
[1735472817611,6.2754,197.03,196.93,20.76140202]
[1735472820184,6.2754,197.03,196.93,20.0]
[1735472832210,1.642,197.04,196.93,20.0]
[1735472832414,1.642,197.04,196.93,20.76143368]
[1735472833585,6.14,197.07,196.94,23.776884]
[1735472833783,6.14,197.07,196.95,0.76130181]
[1735472835603,6.14,197.07,196.97,20.0]
[1735472838720,6.14,197.07,196.97,20.76126001]
[1735472839826,1.27338392,197.06,196.97,20.76126001]